[Event "*** Titled Tuesday Blitz"]
[Site "Chess.com"]
[Date "2020.12.29"]
[Round "11"]
[White "Koalaskakistis"]
[Black "TheKingDoctor"]
[Result "1-0"]
[WhiteElo "2351"]
[BlackElo "2200"]
[TimeControl "180+1"]
[EndTime "12:07:29 PST"]
[Termination "Koalaskakistis won by checkmate"]

1. e4 {[%clk 0:03:00.9]} 1... d5 {[%clk 0:02:55.1]} 2. exd5 {[%clk 0:02:55.2]}
2... Nf6 {[%clk 0:02:54.7]} 3. g3 {[%clk 0:02:51.8]} 3... Nxd5 {[%clk 0:02:53]}
4. Bg2 {[%clk 0:02:51.2]} 4... e5 {[%clk 0:02:41.9]} 5. d4 {[%clk 0:02:37.6]}
5... exd4 {[%clk 0:02:14]} 6. Qxd4 {[%clk 0:02:34.7]} 6... c6 {[%clk 0:02:13.8]}
7. Nf3 {[%clk 0:02:19.4]} 7... Bb4+ {[%clk 0:02:09.2]} 8. c3 {[%clk 0:02:18.1]}
8... Be7 {[%clk 0:02:06.2]} 9. O-O {[%clk 0:02:17.2]} 9... O-O {[%clk
0:02:05.1]} 10. a3 {[%clk 0:02:08.1]} 10... Be6 {[%clk 0:01:37.5]} 11. Nbd2
{[%clk 0:02:00]} 11... Nd7 {[%clk 0:01:37.4]} 12. Ne4 {[%clk 0:01:56.7]} 12...
N7f6 {[%clk 0:01:37.1]} 13. Neg5 {[%clk 0:01:53.2]} 13... Bf5 {[%clk 0:01:31.7]}
14. c4 {[%clk 0:01:47.8]} 14... Nb6 {[%clk 0:01:27.8]} 15. Qf4 {[%clk
0:01:47.4]} 15... Bg6 {[%clk 0:01:26.8]} 16. Be3 {[%clk 0:01:30.3]} 16... Bd6
{[%clk 0:01:25.8]} 17. Qd4 {[%clk 0:01:25.9]} 17... Be7 {[%clk 0:01:18.4]} 18.
b3 {[%clk 0:01:18.8]} 18... Qxd4 {[%clk 0:01:10]} 19. Nxd4 {[%clk 0:01:15.7]}
19... Rad8 {[%clk 0:01:08.9]} 20. a4 {[%clk 0:01:04.6]} 20... h6 {[%clk
0:01:02.1]} 21. Ngf3 {[%clk 0:01:03.5]} 21... Bb4 {[%clk 0:00:59.5]} 22. a5
{[%clk 0:01:02.4]} 22... Nc8 {[%clk 0:00:53.7]} 23. a6 {[%clk 0:01:02.1]} 23...
c5 {[%clk 0:00:33.3]} 24. Nb5 {[%clk 0:00:59.3]} 24... bxa6 {[%clk 0:00:32.4]}
25. Rxa6 {[%clk 0:01:00.2]} 25... Bc2 {[%clk 0:00:23.6]} 26. Rc1 {[%clk
0:00:48.3]} 26... Bxb3 {[%clk 0:00:23.8]} 27. Nxa7 {[%clk 0:00:46.7]} 27... Nxa7
{[%clk 0:00:24.6]} 28. Rxa7 {[%clk 0:00:47.6]} 28... Ra8 {[%clk 0:00:23.6]} 29.
Rxa8 {[%clk 0:00:45.4]} 29... Rxa8 {[%clk 0:00:24.5]} 30. Nd2 {[%clk 0:00:44.9]}
30... Bxd2 {[%clk 0:00:21]} 31. Bxd2 {[%clk 0:00:45.1]} 31... Ra2 {[%clk
0:00:21.6]} 32. Be3 {[%clk 0:00:44.1]} 32... Rc2 {[%clk 0:00:22.5]} 33. Rxc2
{[%clk 0:00:43.5]} 33... Bxc2 {[%clk 0:00:23.4]} 34. Bxc5 {[%clk 0:00:44.4]}
34... Ne4 {[%clk 0:00:23.2]} 35. Bd4 {[%clk 0:00:41.4]} 35... Nd2 {[%clk
0:00:22.5]} 36. c5 {[%clk 0:00:40.2]} 36... Nb3 {[%clk 0:00:23]} 37. Be3 {[%clk
0:00:37.5]} 37... Bf5 {[%clk 0:00:23]} 38. c6 {[%clk 0:00:29.5]} 38... Bc8
{[%clk 0:00:23.4]} 39. c7 {[%clk 0:00:27.8]} 39... Kf8 {[%clk 0:00:21.9]} 40.
Bd5 {[%clk 0:00:26.2]} 40... Na5 {[%clk 0:00:18.6]} 41. Bb6 {[%clk 0:00:24.8]}
41... Nb7 {[%clk 0:00:18.2]} 42. Bd4 {[%clk 0:00:18.1]} 42... f6 {[%clk
0:00:17.7]} 43. Kg2 {[%clk 0:00:16.1]} 43... Ke7 {[%clk 0:00:15.6]} 44. h4
{[%clk 0:00:11.5]} 44... Kd7 {[%clk 0:00:14.8]} 45. Bb6 {[%clk 0:00:10.1]} 45...
Nd6 {[%clk 0:00:13.5]} 46. Bf3 {[%clk 0:00:07.2]} 46... Ke7 {[%clk 0:00:12.4]}
47. h5 {[%clk 0:00:06.7]} 47... Ne8 {[%clk 0:00:12.1]} 48. Bc6 {[%clk
0:00:05.1]} 48... Nd6 {[%clk 0:00:11.2]} 49. Kf3 {[%clk 0:00:04.2]} 49... Ke6
{[%clk 0:00:08.7]} 50. Kf4 {[%clk 0:00:04.2]} 50... Ke7 {[%clk 0:00:06.8]} 51.
Bc5 {[%clk 0:00:04.1]} 51... Ke6 {[%clk 0:00:06.8]} 52. Be4 {[%clk 0:00:03.7]}
52... Nxe4 {[%clk 0:00:05.4]} 53. Kxe4 {[%clk 0:00:04.6]} 53... Kd7 {[%clk
0:00:05.5]} 54. Bf8 {[%clk 0:00:04.3]} 54... Kxc7 {[%clk 0:00:05.7]} 55. Bxg7
{[%clk 0:00:04.5]} 55... Bb7+ {[%clk 0:00:04.7]} 56. Kf4 {[%clk 0:00:04.3]}
56... Kd7 {[%clk 0:00:04.5]} 57. Bxf6 {[%clk 0:00:04.4]} 57... Ke6 {[%clk
0:00:05.2]} 58. Bg7 {[%clk 0:00:04.4]} 58... Kf7 {[%clk 0:00:05.5]} 59. Bxh6
{[%clk 0:00:04.4]} 59... Kg8 {[%clk 0:00:06.4]} 60. Bg5 {[%clk 0:00:04.4]} 60...
Kh7 {[%clk 0:00:07.3]} 61. g4 {[%clk 0:00:05.3]} 61... Bc8 {[%clk 0:00:07.3]}
62. f3 {[%clk 0:00:06.2]} 62... Bb7 {[%clk 0:00:07]} 63. Bf6 {[%clk 0:00:06]}
63... Bc6 {[%clk 0:00:07.1]} 64. g5 {[%clk 0:00:05.9]} 64... Be8 {[%clk
0:00:07.8]} 65. Kg4 {[%clk 0:00:05.3]} 65... Bd7+ {[%clk 0:00:07]} 66. Kh4
{[%clk 0:00:05.3]} 66... Kg8 {[%clk 0:00:07.3]} 67. f4 {[%clk 0:00:06.2]} 67...
Kh7 {[%clk 0:00:07.8]} 68. g6+ {[%clk 0:00:05.9]} 68... Kg8 {[%clk 0:00:07.4]}
69. Kg5 {[%clk 0:00:05.5]} 69... Be8 {[%clk 0:00:06.9]} 70. f5 {[%clk
0:00:06.4]} 70... Bd7 {[%clk 0:00:06.9]} 71. h6 {[%clk 0:00:06.4]} 71... Be8
{[%clk 0:00:06.9]} 72. h7+ {[%clk 0:00:07.3]} 72... Kf8 {[%clk 0:00:06.1]} 73.
h8=Q# {[%clk 0:00:08.2]} 1-0

[Event "*** Titled Tuesday Blitz"]
[Site "Chess.com"]
[Date "2020.12.29"]
[Round "11"]
[White "biostatistician"]
[Black "Rytenko_V"]
[Result "1-0"]
[WhiteElo "2602"]
[BlackElo "2422"]
[TimeControl "180+1"]
[EndTime "12:07:32 PST"]
[Termination "biostatistician won on time"]

1. d4 {[%clk 0:02:54.5]} 1... d5 {[%clk 0:02:59.6]} 2. c4 {[%clk 0:02:54.2]}
2... c6 {[%clk 0:02:59.7]} 3. cxd5 {[%clk 0:02:53.9]} 3... cxd5 {[%clk
0:02:59.3]} 4. Nc3 {[%clk 0:01:34.8]} 4... Nc6 {[%clk 0:02:58.4]} 5. Nf3 {[%clk
0:00:37.4]} 5... Nf6 {[%clk 0:02:58.1]} 6. Bf4 {[%clk 0:00:38]} 6... Bf5 {[%clk
0:02:58.2]} 7. e3 {[%clk 0:00:38.4]} 7... e6 {[%clk 0:02:58.6]} 8. Qb3 {[%clk
0:00:38.9]} 8... Qb6 {[%clk 0:02:57.7]} 9. Qxb6 {[%clk 0:00:39.3]} 9... axb6
{[%clk 0:02:58.6]} 10. Bb5 {[%clk 0:00:40]} 10... Be7 {[%clk 0:02:54.2]} 11. Ne5
{[%clk 0:00:39.9]} 11... Rc8 {[%clk 0:02:54.9]} 12. Nxc6 {[%clk 0:00:39.5]}
12... bxc6 {[%clk 0:02:55.8]} 13. Ba6 {[%clk 0:00:40.1]} 13... Rd8 {[%clk
0:02:54]} 14. Bc7 {[%clk 0:00:39.1]} 14... Rd7 {[%clk 0:02:54.2]} 15. Bxb6
{[%clk 0:00:38.5]} 15... O-O {[%clk 0:02:51.4]} 16. a4 {[%clk 0:00:38.9]} 16...
Bb4 {[%clk 0:02:45.5]} 17. Ke2 {[%clk 0:00:37.8]} 17... Ra8 {[%clk 0:02:42.4]}
18. Bd3 {[%clk 0:00:37.6]} 18... Rb7 {[%clk 0:02:30]} 19. Bxf5 {[%clk
0:00:36.2]} 19... exf5 {[%clk 0:01:58.8]} 20. a5 {[%clk 0:00:35]} 20... Nd7
{[%clk 0:01:57.1]} 21. Rhc1 {[%clk 0:00:16.9]} 21... g6 {[%clk 0:01:48.9]} 22.
Na4 {[%clk 0:00:11.4]} 22... Bxa5 {[%clk 0:01:33.6]} 23. Bxa5 {[%clk 0:00:12.3]}
23... Rxa5 {[%clk 0:01:32.2]} 24. Rxc6 {[%clk 0:00:12.5]} 24... Rb4 {[%clk
0:01:10.7]} 25. b3 {[%clk 0:00:12.4]} 25... Rxb3 {[%clk 0:01:05.4]} 26. Rc2
{[%clk 0:00:12.7]} 26... Nb6 {[%clk 0:00:32.6]} 27. Nc5 {[%clk 0:00:12.7]} 27...
Rba3 {[%clk 0:00:16.6]} 28. Rxa3 {[%clk 0:00:12.6]} 28... Rxa3 {[%clk
0:00:17.5]} 29. Nd3 {[%clk 0:00:11.4]} 29... Nc4 {[%clk 0:00:16.4]} 30. Nf4
{[%clk 0:00:12]} 30... Ra5 {[%clk 0:00:14.2]} 31. Nxd5 {[%clk 0:00:11.4]} 31...
Na3 {[%clk 0:00:12.7]} 32. Rc5 {[%clk 0:00:12]} 32... Ra6 {[%clk 0:00:10.6]} 33.
Nf4 {[%clk 0:00:12.5]} 33... Kg7 {[%clk 0:00:09.6]} 34. h4 {[%clk 0:00:13.1]}
34... Nb1 {[%clk 0:00:09.8]} 35. Rc2 {[%clk 0:00:12.3]} 35... Rb6 {[%clk
0:00:07.8]} 36. Kf3 {[%clk 0:00:12.6]} 36... Na3 {[%clk 0:00:08.4]} 37. Ra2
{[%clk 0:00:11.4]} 37... Nc4 {[%clk 0:00:09]} 38. Rc2 {[%clk 0:00:11.9]} 38...
Nd6 {[%clk 0:00:08.6]} 39. Nd5 {[%clk 0:00:12]} 39... Ra6 {[%clk 0:00:07.4]} 40.
Nf4 {[%clk 0:00:11.9]} 40... Ne4 {[%clk 0:00:07.8]} 41. Ke2 {[%clk 0:00:10.1]}
41... Ra1 {[%clk 0:00:07.2]} 42. f3 {[%clk 0:00:10.5]} 42... Nd6 {[%clk
0:00:07.3]} 43. Kf2 {[%clk 0:00:10.4]} 43... Ra3 {[%clk 0:00:06.8]} 44. Re2
{[%clk 0:00:10.3]} 44... h6 {[%clk 0:00:06.5]} 45. Nd5 {[%clk 0:00:10.7]} 45...
Ra5 {[%clk 0:00:06]} 46. Nc3 {[%clk 0:00:10.2]} 46... Ra3 {[%clk 0:00:06.2]} 47.
Nd5 {[%clk 0:00:10]} 47... Ra5 {[%clk 0:00:06.4]} 48. Nf4 {[%clk 0:00:10.7]}
48... Ra3 {[%clk 0:00:06.7]} 49. Nh3 {[%clk 0:00:09.3]} 49... Nc4 {[%clk
0:00:05.9]} 50. e4 {[%clk 0:00:08.7]} 50... fxe4 {[%clk 0:00:04.4]} 51. fxe4
{[%clk 0:00:09.6]} 51... Nd6 {[%clk 0:00:04.9]} 52. d5 {[%clk 0:00:08.2]} 52...
Ra5 {[%clk 0:00:04.5]} 53. Kf3 {[%clk 0:00:08.7]} 53... Kf6 {[%clk 0:00:04.4]}
54. Nf4 {[%clk 0:00:08.1]} 54... Ke7 {[%clk 0:00:03.8]} 55. Re3 {[%clk
0:00:07.4]} 55... Kd7 {[%clk 0:00:03.6]} 56. h5 {[%clk 0:00:07.1]} 56... g5
{[%clk 0:00:03.6]} 57. Nd3 {[%clk 0:00:07.7]} 57... Ra1 {[%clk 0:00:04.1]} 58.
Ne5+ {[%clk 0:00:07.9]} 58... Ke7 {[%clk 0:00:04.5]} 59. Nc6+ {[%clk 0:00:08.3]}
59... Kd7 {[%clk 0:00:05.1]} 60. e5 {[%clk 0:00:08.9]} 60... Nc4 {[%clk
0:00:05.5]} 61. Rc3 {[%clk 0:00:08.4]} 61... Nb6 {[%clk 0:00:03.3]} 62. Nb4
{[%clk 0:00:07.5]} 62... Rb1 {[%clk 0:00:02.8]} 63. e6+ {[%clk 0:00:04.4]} 63...
fxe6 {[%clk 0:00:02.5]} 64. dxe6+ {[%clk 0:00:05.3]} 64... Ke7 {[%clk
0:00:01.7]} 65. Nc6+ {[%clk 0:00:04.4]} 65... Kf6 {[%clk 0:00:02.1]} 66. Nd4
{[%clk 0:00:05.3]} 66... Nd5 {[%clk 0:00:01.7]} 67. Rc6 {[%clk 0:00:04.8]} 67...
Ne7 {[%clk 0:00:01.2]} 68. Rc7 {[%clk 0:00:04.6]} 68... Rb4 {[%clk 0:00:01.5]}
69. Ke4 {[%clk 0:00:04.9]} 1-0

[Event "*** Titled Tuesday Blitz"]
[Site "Chess.com"]
[Date "2020.12.29"]
[Round "11"]
[White "Jenia84"]
[Black "TomasKapitanchuk"]
[Result "1/2-1/2"]
[WhiteElo "2368"]
[BlackElo "2471"]
[TimeControl "180+1"]
[EndTime "12:07:36 PST"]
[Termination "Game drawn - insufficient material"]

1. Nf3 {[%clk 0:03:00.9]} 1... Nf6 {[%clk 0:02:59.8]} 2. b3 {[%clk 0:02:40.9]}
2... e6 {[%clk 0:02:59.9]} 3. Bb2 {[%clk 0:02:41.1]} 3... Be7 {[%clk 0:03:00.3]}
4. e3 {[%clk 0:02:41.3]} 4... O-O {[%clk 0:03:00.8]} 5. Be2 {[%clk 0:02:41]}
5... c5 {[%clk 0:03:01.1]} 6. O-O {[%clk 0:02:41.4]} 6... b6 {[%clk 0:03:01.7]}
7. c4 {[%clk 0:02:41.6]} 7... Bb7 {[%clk 0:03:02.3]} 8. Nc3 {[%clk 0:02:41.7]}
8... d6 {[%clk 0:03:02.5]} 9. d4 {[%clk 0:02:41.8]} 9... Nbd7 {[%clk 0:03:02.7]}
10. Rc1 {[%clk 0:02:40.6]} 10... Rc8 {[%clk 0:03:02.6]} 11. a4 {[%clk
0:02:35.3]} 11... cxd4 {[%clk 0:03:02.3]} 12. exd4 {[%clk 0:02:34.3]} 12... d5
{[%clk 0:03:00.1]} 13. Ne5 {[%clk 0:02:28.2]} 13... dxc4 {[%clk 0:02:35.5]} 14.
Bxc4 {[%clk 0:02:25.3]} 14... Nd5 {[%clk 0:02:20.1]} 15. Nxd5 {[%clk 0:02:22.6]}
15... exd5 {[%clk 0:02:18.9]} 16. Bd3 {[%clk 0:02:20.2]} 16... Nxe5 {[%clk
0:02:17.1]} 17. dxe5 {[%clk 0:02:11.4]} 17... Rxc1 {[%clk 0:02:16.7]} 18. Qxc1
{[%clk 0:02:09.4]} 18... d4 {[%clk 0:02:16.1]} 19. Qc4 {[%clk 0:01:36.5]} 19...
Bc5 {[%clk 0:01:47.6]} 20. Rd1 {[%clk 0:01:28.1]} 20... Bd5 {[%clk 0:01:46.9]}
21. Qc2 {[%clk 0:01:24.8]} 21... Qg5 {[%clk 0:01:47.1]} 22. Bxh7+ {[%clk
0:01:18]} 22... Kh8 {[%clk 0:01:47.3]} 23. Be4 {[%clk 0:01:16.6]} 23... Qxe5
{[%clk 0:01:43.3]} 24. Bxd5 {[%clk 0:01:15.7]} 24... Qxd5 {[%clk 0:01:44.2]} 25.
Qd3 {[%clk 0:01:12.7]} 25... Re8 {[%clk 0:01:41.2]} 26. h3 {[%clk 0:01:03.7]}
26... Re4 {[%clk 0:01:39.6]} 27. Qf3 {[%clk 0:01:00]} 27... Qe6 {[%clk
0:01:35.2]} 28. Kh2 {[%clk 0:00:54.2]} 28... Bd6+ {[%clk 0:01:34.7]} 29. g3
{[%clk 0:00:52.7]} 29... Bc5 {[%clk 0:01:25.4]} 30. b4 {[%clk 0:00:47.6]} 30...
Bxb4 {[%clk 0:01:12.1]} 31. Bxd4 {[%clk 0:00:47.5]} 31... f6 {[%clk 0:00:43.9]}
32. Be3 {[%clk 0:00:45.6]} 32... Bf8 {[%clk 0:00:40.8]} 33. Rd8 {[%clk
0:00:43.5]} 33... Kg8 {[%clk 0:00:40.6]} 34. Ra8 {[%clk 0:00:37.7]} 34... Rxa4
{[%clk 0:00:37.4]} 35. Qb7 {[%clk 0:00:25.9]} 35... Ra1 {[%clk 0:00:24.9]} 36.
Rxa7 {[%clk 0:00:16.1]} 36... Rxa7 {[%clk 0:00:25.8]} 37. Qxa7 {[%clk
0:00:16.3]} 37... b5 {[%clk 0:00:26.7]} 38. Qd4 {[%clk 0:00:15.6]} 38... Qc4
{[%clk 0:00:25]} 39. Qxc4+ {[%clk 0:00:15.3]} 39... bxc4 {[%clk 0:00:25.9]} 40.
Bd2 {[%clk 0:00:15.5]} 40... Bc5 {[%clk 0:00:25.1]} 41. Kg2 {[%clk 0:00:15]}
41... Bd4 {[%clk 0:00:25.6]} 42. Kf1 {[%clk 0:00:14.5]} 42... Kf7 {[%clk
0:00:25.3]} 43. Ke2 {[%clk 0:00:14.2]} 43... Ke6 {[%clk 0:00:25.7]} 44. f3
{[%clk 0:00:11.9]} 44... Kd5 {[%clk 0:00:24.4]} 45. Kd1 {[%clk 0:00:12]} 45...
c3 {[%clk 0:00:23.6]} 46. Bf4 {[%clk 0:00:10.8]} 46... Kc4 {[%clk 0:00:23.4]}
47. Kc2 {[%clk 0:00:10.6]} 47... Bf2 {[%clk 0:00:21.4]} 48. g4 {[%clk
0:00:10.4]} 48... Kd4 {[%clk 0:00:21.7]} 49. Bd6 {[%clk 0:00:09.2]} 49... Ke3
{[%clk 0:00:20.9]} 50. Kxc3 {[%clk 0:00:07.6]} 50... Kxf3 {[%clk 0:00:20.9]} 51.
Bf8 {[%clk 0:00:06.4]} 51... g6 {[%clk 0:00:20]} 52. Bg7 {[%clk 0:00:05]} 52...
Bh4 {[%clk 0:00:20.4]} 53. Kd3 {[%clk 0:00:04.1]} 53... Kg2 {[%clk 0:00:20.9]}
54. Ke4 {[%clk 0:00:04.1]} 54... Kxh3 {[%clk 0:00:21.4]} 55. Kf3 {[%clk
0:00:04.4]} 55... Bg5 {[%clk 0:00:20.5]} 56. Bf8 {[%clk 0:00:03.7]} 56... Kh2
{[%clk 0:00:19.2]} 57. Bd6+ {[%clk 0:00:04.2]} 57... Kg1 {[%clk 0:00:19.5]} 58.
Be7 {[%clk 0:00:04.4]} 58... Kf1 {[%clk 0:00:20]} 59. Bd6 {[%clk 0:00:04.5]}
59... Ke1 {[%clk 0:00:20.3]} 60. Be7 {[%clk 0:00:04.9]} 60... Kd2 {[%clk
0:00:20.6]} 61. Bc5 {[%clk 0:00:04.8]} 61... Kd3 {[%clk 0:00:21.1]} 62. Be7
{[%clk 0:00:05.3]} 62... Kd4 {[%clk 0:00:19.7]} 63. Bd6 {[%clk 0:00:05.9]} 63...
Kd5 {[%clk 0:00:19.6]} 64. Bg3 {[%clk 0:00:06.4]} 64... Ke6 {[%clk 0:00:18.6]}
65. Bf2 {[%clk 0:00:06.8]} 65... Bc1 {[%clk 0:00:19.4]} 66. Be1 {[%clk
0:00:06.6]} 66... g5 {[%clk 0:00:16.2]} 67. Bg3 {[%clk 0:00:06.9]} 67... Bb2
{[%clk 0:00:14.6]} 68. Bf2 {[%clk 0:00:07.3]} 68... f5 {[%clk 0:00:14.2]} 69.
gxf5+ {[%clk 0:00:06.2]} 69... Kxf5 {[%clk 0:00:15.1]} 70. Be3 {[%clk
0:00:06.5]} 70... g4+ {[%clk 0:00:16]} 71. Kg2 {[%clk 0:00:06.7]} 71... Be5
{[%clk 0:00:16.7]} 72. Bf2 {[%clk 0:00:06.8]} 72... Kg6 {[%clk 0:00:16.8]} 73.
Be1 {[%clk 0:00:05.2]} 73... Kf5 {[%clk 0:00:16.1]} 74. Bf2 {[%clk 0:00:05.6]}
74... Ke4 {[%clk 0:00:16.5]} 75. Be1 {[%clk 0:00:05.8]} 75... Ke3 {[%clk
0:00:16.8]} 76. Bf2+ {[%clk 0:00:06]} 76... Ke2 {[%clk 0:00:16.5]} 77. Bg3
{[%clk 0:00:05.9]} 77... Bd4 {[%clk 0:00:16.8]} 78. Bf4 {[%clk 0:00:06]} 78...
Bf2 {[%clk 0:00:16.5]} 79. Bg3 {[%clk 0:00:06.2]} 79... Be3 {[%clk 0:00:14.4]}
80. Be5 {[%clk 0:00:06.5]} 80... Bf2 {[%clk 0:00:14.8]} 81. Bg3 {[%clk 0:00:06]}
81... Be1 {[%clk 0:00:13.5]} 82. Bxe1 {[%clk 0:00:05.4]} 82... Kxe1 {[%clk
0:00:14.4]} 83. Kg3 {[%clk 0:00:06.1]} 83... Ke2 {[%clk 0:00:14.8]} 84. Kxg4
{[%clk 0:00:07]} 1/2-1/2

[Event "*** Titled Tuesday Blitz"]
[Site "Chess.com"]
[Date "2020.12.29"]
[Round "11"]
[White "atalz0"]
[Black "Nadeev_Sergey"]
[Result "0-1"]
[WhiteElo "2380"]
[BlackElo "2477"]
[TimeControl "180+1"]
[EndTime "12:07:37 PST"]
[Termination "Nadeev_Sergey won on time"]

1. d4 {[%clk 0:03:00.9]} 1... Nf6 {[%clk 0:02:59.7]} 2. c4 {[%clk 0:03:00.9]}
2... e6 {[%clk 0:02:59.6]} 3. Nc3 {[%clk 0:03:00.9]} 3... Bb4 {[%clk 0:02:59.6]}
4. Qc2 {[%clk 0:03:01.3]} 4... c5 {[%clk 0:02:59.4]} 5. dxc5 {[%clk 0:03:00.9]}
5... Qa5 {[%clk 0:02:59.2]} 6. Bd2 {[%clk 0:02:54.4]} 6... Nc6 {[%clk
0:02:59.5]} 7. Nf3 {[%clk 0:02:52.1]} 7... Qxc5 {[%clk 0:02:59.6]} 8. e3 {[%clk
0:02:45.4]} 8... d5 {[%clk 0:02:59.5]} 9. a3 {[%clk 0:02:38.7]} 9... Bxc3 {[%clk
0:02:59.6]} 10. Bxc3 {[%clk 0:02:37.5]} 10... dxc4 {[%clk 0:02:59.7]} 11. Bxf6
{[%clk 0:02:34.8]} 11... gxf6 {[%clk 0:02:58.5]} 12. Bxc4 {[%clk 0:02:34.5]}
12... Bd7 {[%clk 0:02:48]} 13. O-O {[%clk 0:02:29.1]} 13... Rc8 {[%clk
0:02:47.1]} 14. Rfc1 {[%clk 0:01:27.6]} 14... Ke7 {[%clk 0:02:10.1]} 15. b4
{[%clk 0:01:23]} 15... Qh5 {[%clk 0:02:09.6]} 16. Qe2 {[%clk 0:01:19.3]} 16...
Rhg8 {[%clk 0:02:02.9]} 17. g3 {[%clk 0:01:16.5]} 17... Ne5 {[%clk 0:01:41.1]}
18. Nxe5 {[%clk 0:01:15.4]} 18... Qxe2 {[%clk 0:01:31.2]} 19. Bxe2 {[%clk
0:01:15.3]} 19... fxe5 {[%clk 0:01:31.8]} 20. Bf3 {[%clk 0:01:12]} 20... b6
{[%clk 0:01:31.6]} 21. Kf1 {[%clk 0:01:07.6]} 21... Bb5+ {[%clk 0:01:27.5]} 22.
Ke1 {[%clk 0:01:06.5]} 22... Bd3 {[%clk 0:01:26.2]} 23. Kd2 {[%clk 0:00:59.5]}
23... Bc4 {[%clk 0:01:18.7]} 24. Rc3 {[%clk 0:00:53.7]} 24... Rgd8+ {[%clk
0:01:17.9]} 25. Kc2 {[%clk 0:00:51.5]} 25... Bd3+ {[%clk 0:01:12.2]} 26. Kb2
{[%clk 0:00:50]} 26... Rxc3 {[%clk 0:01:09.1]} 27. Kxc3 {[%clk 0:00:48]} 27...
e4 {[%clk 0:01:09.3]} 28. Bd1 {[%clk 0:00:47]} 28... Rc8+ {[%clk 0:01:09.7]} 29.
Kd2 {[%clk 0:00:45.8]} 29... Kd6 {[%clk 0:01:01.2]} 30. Rc1 {[%clk 0:00:43.3]}
30... Rxc1 {[%clk 0:00:56.2]} 31. Kxc1 {[%clk 0:00:44.2]} 31... f5 {[%clk
0:00:54.9]} 32. Kd2 {[%clk 0:00:43.1]} 32... Bb5 {[%clk 0:00:53.4]} 33. Kc3
{[%clk 0:00:43.2]} 33... e5 {[%clk 0:00:53.2]} 34. Bb3 {[%clk 0:00:40]} 34...
Be8 {[%clk 0:00:52.3]} 35. Bg8 {[%clk 0:00:39.3]} 35... h6 {[%clk 0:00:52.3]}
36. Bh7 {[%clk 0:00:38.2]} 36... Bd7 {[%clk 0:00:50.1]} 37. Kc4 {[%clk
0:00:37.9]} 37... Kc6 {[%clk 0:00:46.7]} 38. a4 {[%clk 0:00:32.1]} 38... Be6+
{[%clk 0:00:44.8]} 39. Kc3 {[%clk 0:00:31]} 39... a5 {[%clk 0:00:45.4]} 40. Bg6
{[%clk 0:00:25.4]} 40... Kd5 {[%clk 0:00:43.6]} 41. Be8 {[%clk 0:00:20.9]} 41...
Kd6 {[%clk 0:00:40.4]} 42. Bb5 {[%clk 0:00:20.6]} 42... Bc8 {[%clk 0:00:34.4]}
43. Bf1 {[%clk 0:00:19.6]} 43... Bd7 {[%clk 0:00:33.4]} 44. Bh3 {[%clk 0:00:19]}
44... Ke6 {[%clk 0:00:22.4]} 45. Kc4 {[%clk 0:00:18.5]} 45... Bxa4 {[%clk
0:00:18.9]} 46. bxa5 {[%clk 0:00:18.3]} 46... bxa5 {[%clk 0:00:19]} 47. g4
{[%clk 0:00:17.9]} 47... fxg4 {[%clk 0:00:18.3]} 48. Bxg4+ {[%clk 0:00:18.8]}
48... Kd6 {[%clk 0:00:16]} 49. Bf5 {[%clk 0:00:18.6]} 49... Bc6 {[%clk
0:00:16.1]} 50. Bg6 {[%clk 0:00:15.9]} 50... a4 {[%clk 0:00:15.9]} 51. Kb4
{[%clk 0:00:15.9]} 51... Ke6 {[%clk 0:00:14.8]} 52. Bh7 {[%clk 0:00:13.5]} 52...
Kf7 {[%clk 0:00:14.7]} 53. Bf5 {[%clk 0:00:12.9]} 53... Kf6 {[%clk 0:00:14.8]}
54. Bc8 {[%clk 0:00:12.6]} 54... Kg5 {[%clk 0:00:14.7]} 55. Bh3 {[%clk
0:00:10.7]} 55... Kh4 {[%clk 0:00:13.8]} 56. Bf5 {[%clk 0:00:10.8]} 56... Kg5
{[%clk 0:00:12.5]} 57. Bh3 {[%clk 0:00:10.8]} 57... Kf6 {[%clk 0:00:13]} 58. Bg4
{[%clk 0:00:10.8]} 58... Ke7 {[%clk 0:00:13.3]} 59. Bh3 {[%clk 0:00:10.9]} 59...
Kd6 {[%clk 0:00:13.8]} 60. Bg4 {[%clk 0:00:11]} 60... Be8 {[%clk 0:00:12.6]} 61.
Bd1 {[%clk 0:00:10.5]} 61... Bd7 {[%clk 0:00:10.7]} 62. Bc2 {[%clk 0:00:10.1]}
62... Kd5 {[%clk 0:00:10.2]} 63. Bd1 {[%clk 0:00:10.1]} 63... a3 {[%clk
0:00:09.5]} 64. Kxa3 {[%clk 0:00:09.7]} 64... Kc4 {[%clk 0:00:09.8]} 65. Kb2
{[%clk 0:00:08.6]} 65... Kd3 {[%clk 0:00:10.2]} 66. Kc1 {[%clk 0:00:08.8]} 66...
Bf5 {[%clk 0:00:07.8]} 67. Bh5 {[%clk 0:00:08.5]} 67... Kc3 {[%clk 0:00:06.4]}
68. Kd1 {[%clk 0:00:08.5]} 68... Bh3 {[%clk 0:00:06.7]} 69. Ke2 {[%clk
0:00:07.9]} 69... Bg2 {[%clk 0:00:05.3]} 70. Bg4 {[%clk 0:00:07.1]} 70... Kc2
{[%clk 0:00:04.3]} 71. Bh5 {[%clk 0:00:06.6]} 71... Bh3 {[%clk 0:00:04.5]} 72.
Ke1 {[%clk 0:00:02.6]} 72... Kd3 {[%clk 0:00:04.2]} 73. Be2+ {[%clk 0:00:03.1]}
73... Kc3 {[%clk 0:00:04.7]} 74. Bh5 {[%clk 0:00:03.9]} 74... Kc4 {[%clk
0:00:04.7]} 75. Bg6 {[%clk 0:00:03.8]} 75... Bg2 {[%clk 0:00:01.9]} 76. Bh5
{[%clk 0:00:03.4]} 76... Bf3 {[%clk 0:00:02.4]} 77. Kd2 {[%clk 0:00:03.6]} 77...
Bxh5 {[%clk 0:00:02]} 0-1